Company(T),Trans.date,Supplier Name(T),TransNo,Amount,Irrecoverable VAT,Service/Dept(T),Procurement Category,Account code,Account code(T),Narrative/Purpose of Spend,Government Procurement Card
East Cambridgeshire District Council,15/09/2016,June/July Rail Fares ,5105456,705.32,,National Practitioner Support Programme,Employees,1051,Staff Travelling,NPSS,Y
East Cambridgeshire District Council,15/09/2016,Highflyer,5105456,27.75,,National Practitioner Support Programme,Employees,1052,Staff Subsistence,NPSS,Y
East Cambridgeshire District Council,15/08/2016,UK Fire Training,636605,675,,Training,Employees,1130,Training - In House,Fire Marshall Training - 14/7/16,
East Cambridgeshire District Council,15/08/2016,Training & Coaching Solutions Limited,636602,"20,500.00",,Human Resources,Employees,1135,Training - External,Learning & Development - Sept 2016,
East Cambridgeshire District Council,15/09/2016,City of Westminster ,5105456,120,,Training,Employees,1135,Training - External,Investigation Skills Redacted Personal Data,Y
East Cambridgeshire District Council,19/07/2016,Local World Ltd - Cambridge Newspapers,636511,800,,Human Resources,Employees,1140,Staff Advertising,,
East Cambridgeshire District Council,22/08/2016,Local World Ltd - Cambridge Newspapers,636681,610,,Human Resources,Employees,1140,Staff Advertising,Cambridge news 30/616 & 1/7/16,
East Cambridgeshire District Council,01/08/2016,Adcock Refrigeration & Air Conditioning Ltd,636495,648,,The Grange,Premises,2020,Premises Contract Work,TM44 Energy Inspection,
East Cambridgeshire District Council,18/08/2016,C D Clowe,636643,"1,101.60",,E Space North,Premises,2020,Premises Contract Work,E-Space North Annual Testing July/Aug,
East Cambridgeshire District Council,18/08/2016,C D Clowe,636653,636.06,,Oliver Cromwell House,Premises,2020,Premises Contract Work,Emergency lighting at OCH,
East Cambridgeshire District Council,22/08/2016,AmeyCespa (East) Limited,1135098,997.07,,EI Recycling,Premises,2020,Premises Contract Work,BringBank,
East Cambridgeshire District Council,02/08/2016,Carter Jonas LLP,636510,683.04,,Asset Management,Premises,2030,Premises Asset Management,Barton Rd Car Park,
East Cambridgeshire District Council,04/08/2016,Grays Surfacing,636557,940,,Parking Of Vehicles,Premises,2030,Premises Asset Management,Forehill Car Park,
East Cambridgeshire District Council,04/08/2016,Grays Surfacing,636559,"6,426.00",,Parks And Open Spaces,Premises,2030,Premises Asset Management,Longfield Rd,
East Cambridgeshire District Council,04/08/2016,Grays Surfacing,636564,900,,Parking Of Vehicles,Premises,2030,Premises Asset Management,Newnham St Car Park,
East Cambridgeshire District Council,02/06/2016,Pickerings Europe Ltd,636584,"3,508.00",,Asset Management,Premises,2030,Premises Asset Management,Repairs to Lift,
East Cambridgeshire District Council,17/08/2016,NB Carpentry Ltd,636627,"3,281.25",,Travellers Site - Wentworth,Premises,2030,Premises Asset Management,,
East Cambridgeshire District Council,18/08/2016,C D Clowe,636652,986.51,,The Grange,Premises,2030,Premises Asset Management,LED panel upgrade The Grange,
East Cambridgeshire District Council,30/08/2016,C D Clowe,636722,"1,678.08",,The Grange,Premises,2030,Premises Asset Management,upgrading lighting at The Grange,
East Cambridgeshire District Council,15/09/2016,Tricel,5105456,25.4,,Travellers Site - Wentworth,Premises,2030,Premises Asset Management,Meter Box,Y
East Cambridgeshire District Council,15/09/2016,Tricel ,5105456,57.04,,Travellers Site -  Burwell,Premises,2030,Premises Asset Management,Meter Box,Y
East Cambridgeshire District Council,22/08/2016,Southern Electric,1135081,595.81,,Oliver Cromwell House,Premises,2110,Electricity,821327801 OCH,
East Cambridgeshire District Council,22/08/2016,Southern Electric,1135085,964.37,,The Grange,Premises,2110,Electricity,551327357 The Grange,
East Cambridgeshire District Council,22/08/2016,Southern Electric,1135087,539.65,,"PC Cloisters, Ely",Premises,2110,Electricity,191328221 Cloisters Toilets,
East Cambridgeshire District Council,22/08/2016,Southern Electric,1135092,667.98,,E Space South,Premises,2110,Electricity,71326441 E-Space South,
East Cambridgeshire District Council,05/08/2016,The Ross Peers Sports Centre,636549,"6,367.27",,Referendums,Premises,2211,Rent Premises/Room Hire,EU Referendum hall hire 23 & 24 June 16,
East Cambridgeshire District Council,05/08/2016,The Ross Peers Sports Centre,636550,"6,367.27",,Police & Crime Commissioners Elections,Premises,2211,Rent Premises/Room Hire,Police Commissioners election 5 & 6 May 16,
East Cambridgeshire District Council,22/07/2016,Burwell Ex-Service & Social Club,636506,"1,987.60",,Parking Of Vehicles,Premises,2215,Leases,Car parking lease 1/4/16-31/3/17,
East Cambridgeshire District Council,15/08/2016,Anglian Water,1135004,"2,139.11",,"PC Fountain Lane, Soham",Premises,2410,Water Rates,113045884 Public Toilets Fountain Lane Soham,
East Cambridgeshire District Council,15/08/2016,Anglian Water,1135004,"2,266.99",,"PC Fountain Lane, Soham",Premises,2411,Sewerage Charge,113045884 Public Toilets Fountain Lane Soham,
East Cambridgeshire District Council,30/08/2016,JF Staples,636723,"1,850.00",,Award Ditches,Premises,2820,Grounds Contract Work,Haddenham & Mepal ditches,
East Cambridgeshire District Council,11/08/2016,Electrical Testing Ltd,636619,"1,824.92",,Parking Of Vehicles,Premises,2832,Street Lamps,Public Street Lighting - Inspection & Testing,
East Cambridgeshire District Council,05/08/2016,The Copyright Licensing Agency Limited,1134973,786.59,,Corp.Man.Policy Research/Review,Premises,2841,Licences,Public Admin Licence 1/8/16-31/7/17,
East Cambridgeshire District Council,25/07/2016,Geoff Glover Van Sales,636491,"1,066.24",,EO58 VUH,Transport,3010,Vehicle Repairs,EO58 VUH investigate engine cutting out,
East Cambridgeshire District Council,11/08/2016,Geoff Glover Van Sales,636579,535.66,,General Gang,Transport,3010,Vehicle Repairs,"Mot, Service & Repair FJ56YBC",
East Cambridgeshire District Council,03/08/2016,Be Fuelcards,1134963,506.63,,Parks And Open Spaces,Transport,3021,Derv,,
East Cambridgeshire District Council,03/08/2016,Be Fuelcards,1134963,580.19,,Sanctuary Grasscutting,Transport,3021,Derv,,
East Cambridgeshire District Council,05/08/2016,Post Office Ltd,1134966,650,,Weekly Collection Support Grant,Transport,3024,Vehicle Excise Duty,RFL VX63 GUJ 16/17,
East Cambridgeshire District Council,05/08/2016,Post Office Ltd,1134967,650,,Weekly Collection Support Grant,Transport,3024,Vehicle Excise Duty,VX63 GUK 16/17,
East Cambridgeshire District Council,05/08/2016,Post Office Ltd,1134968,650,,Weekly Collection Support Grant,Transport,3024,Vehicle Excise Duty,VX63 GUE 16/17,
East Cambridgeshire District Council,01/08/2016,G & J Peck Ltd,636493,"1,017.50",,Sanctuary Grasscutting,Supplies And Services,4010,Equipment - Purchases,Hedge trimmer & brushcutter,
East Cambridgeshire District Council,15/09/2016,Party Packs,5105456,12.24,,Weekly Collection Support Grant,Supplies And Services,4010,Equipment - Purchases,Balloon Tool,Y
East Cambridgeshire District Council,10/08/2016,Airelec Maintenance Ltd,636574,957,,The Grange,Supplies And Services,4011,Equipment - Repairs,Spare Parts for Planning Office AC,
East Cambridgeshire District Council,08/08/2016,Campbell Associates Ltd,636618,795,,Nuisances,Supplies And Services,4011,Equipment - Repairs,,
East Cambridgeshire District Council,01/08/2016,Konica Minolta Business Solutions East Ltd,1134933,"2,626.50",,Printing/Copying,Supplies And Services,4013,Equipment - Hire,Copy charges 1/5/16-31/7/16,
East Cambridgeshire District Council,23/08/2016,Fingerprint Digital Ltd,1135104,627.95,,Printing/Copying,Supplies And Services,4014,Equipment - Maint. Agreements,Combined service call Ideal 5221,
East Cambridgeshire District Council,04/08/2016,Grays Surfacing,636556,"3,000.00",,Parking Of Vehicles,Supplies And Services,4015,S106 Spend,Fishermans car park,
East Cambridgeshire District Council,04/08/2016,Grays Surfacing,636558,"3,150.00",,Jubilee Gardens,Supplies And Services,4015,S106 Spend,Jubilee gardens,
East Cambridgeshire District Council,22/07/2016,Park Retail Ltd t/as Love2Reward,636456,"1,078.00",,Recycling Reward Scheme,Supplies And Services,4030,Materials - Purchase,10 Love2Shop Vouchers,
East Cambridgeshire District Council,08/08/2016,Bunzl  Cleaning & Hygiene Supplies,636541,"1,644.57",,Public Conveniences,Supplies And Services,4030,Materials - Purchase,,
East Cambridgeshire District Council,22/08/2016,Screwfix Direct Ltd t/as Trade UK,636686,712.36,,Parks And Open Spaces,Supplies And Services,4030,Materials - Purchase,Stanley screwdriver & forge steel socket,
East Cambridgeshire District Council,15/09/2016, Tesco,5105456,21.76,,National Practitioner Support Programme,Supplies And Services,4110,Food /Refreshments Purchased,NPSS,Y
East Cambridgeshire District Council,15/09/2016,Safety Supply Co,5105456,215.17,,LATC,Supplies And Services,4210,Protective Clothing,PPE,Y
East Cambridgeshire District Council,12/07/2016,Corporate Mailing Solutions,636501,"3,640.00",,Registration of Electors,Supplies And Services,4310,Printing & Stationery,Manilla envelopes,
East Cambridgeshire District Council,09/08/2016,The Training Shop,636554,814.5,,National Practitioner Support Programme,Supplies And Services,4310,Printing & Stationery,Printed Bendy Men,
East Cambridgeshire District Council,23/08/2016,Corporate Mailing Solutions,636685,"4,807.49",,Registration of Electors,Supplies And Services,4310,Printing & Stationery,Canvas 2016,
East Cambridgeshire District Council,15/09/2016,Copyman ,5105456,630.6,,National Practitioner Support Programme,Supplies And Services,4310,Printing & Stationery,NPSS,Y
East Cambridgeshire District Council,05/08/2016,Matchtech Group Ltd,636539,"1,170.00",,Planning,Supplies And Services,4401,Agency Workers,Redacted Personal Data 25/7/16,
East Cambridgeshire District Council,02/08/2016,Barry Cornelius Associates Ltd,636544,"3,600.00",,Finance - Accountancy,Supplies And Services,4401,Agency Workers,Redacted Personal Data July 2016,
East Cambridgeshire District Council,05/08/2016,Matchtech Group Ltd,636581,"1,062.75",,Planning,Supplies And Services,4401,Agency Workers,Redacted Personal Data Week Commencing 18/7/16,
East Cambridgeshire District Council,15/08/2016,Matchtech Group Ltd,636609,"1,554.00",,Planning,Supplies And Services,4401,Agency Workers,Redacted Personal Data Week Commencing 01/08/16,
East Cambridgeshire District Council,17/08/2016,Neaves & Neat Employment Services Ltd,636630,555,,Reception Holding A/C,Supplies And Services,4401,Agency Workers,Redacted Personal Data Week Ending 14/8/16,
East Cambridgeshire District Council,22/08/2016,Matchtech Group Ltd,636651,"1,554.00",,Planning,Supplies And Services,4401,Agency Workers,Redacted Personal Data W/E 12/8/16,
East Cambridgeshire District Council,26/08/2016,Matchtech Group Ltd,636727,"1,554.00",,Planning,Supplies And Services,4401,Agency Workers,Redacted Personal Data,
East Cambridgeshire District Council,11/08/2016,G4S Cash Solutions (UK) Ltd,1134994,822.99,,Angel Drove Commuters Car Park,Supplies And Services,4412,Courier Service,Contract 3342504 1/9/16-30/9/16,
East Cambridgeshire District Council,04/08/2016,Carter Jonas LLP Client Account,636525,"1,975.00",,Homelessness Prevention,Supplies And Services,4421,Sanctuary Homelessness/Rent Deposit,Rent 10/8/16-9/9/16 Redacted Personal Data,
East Cambridgeshire District Council,03/08/2016,Keeley Associates Rental Account,636533,"1,350.00",,Homelessness Prevention,Supplies And Services,4421,Sanctuary Homelessness/Rent Deposit,Redacted Personal Data,
East Cambridgeshire District Council,07/08/2016,Redacted Personal Data,636582,500,,Homelessness Prevention,Supplies And Services,4421,Sanctuary Homelessness/Rent Deposit,Redacted Personal Data,
East Cambridgeshire District Council,17/08/2016,Redacted Personal Data,636617,500,,Homelessness Prevention,Supplies And Services,4421,Sanctuary Homelessness/Rent Deposit,Redacted Personal Data,
East Cambridgeshire District Council,17/08/2016,Park Lane Properties,636631,725,,Homelessness Prevention,Supplies And Services,4421,Sanctuary Homelessness/Rent Deposit,Redacted Personal Data,
East Cambridgeshire District Council,18/08/2016,Keeley Associates Rental Account,636635,500,,Homelessness Prevention,Supplies And Services,4421,Sanctuary Homelessness/Rent Deposit,Redacted Personal Data,
East Cambridgeshire District Council,24/08/2016,David Clark & Co Ltd,636696,"1,042.50",,Homelessness Prevention,Supplies And Services,4421,Sanctuary Homelessness/Rent Deposit,Redacted Personal Data,
East Cambridgeshire District Council,04/08/2016,AmeyCespa (East) Limited,636691,646.17,,Sanctuary Grasscutting,Supplies And Services,4428,Tipping Fees,Bulky Waste & Wheelie bin collection July 2016,
East Cambridgeshire District Council,28/07/2016,Foresight Consulting (UK) Ltd,636476,"10,480.80",,Corp.Man.Policy Research/Review,Supplies And Services,4430,Consultants Fees,Transformation Prog Phase 1,
East Cambridgeshire District Council,01/08/2016,Cheffins,636514,714,,E Space South,Supplies And Services,4430,Consultants Fees,Suite 10 E-Space South,
East Cambridgeshire District Council,02/08/2016,Barry Cornelius Associates Ltd,636544,"1,600.00",,Finance - Accountancy,Supplies And Services,4430,Consultants Fees,Redacted Personal Data July 2016,
East Cambridgeshire District Council,09/08/2016,University of Cambridge,636562,"36,328.28",,Leisure Centre,Supplies And Services,4430,Consultants Fees,Archaeological excavation July,
East Cambridgeshire District Council,08/08/2016,East of England Local Government Association,636569,"2,858.40",,Human Resources,Supplies And Services,4430,Consultants Fees,JE Implementation 4.5 days July 2916,
East Cambridgeshire District Council,24/08/2016,Trowers & Hamlins LLP,636682,"4,709.00",,Asset Management,Supplies And Services,4430,Consultants Fees,Market Place Ely,
East Cambridgeshire District Council,11/08/2016,East of England Local Government Association,636697,"36,000.00",,Corp.Man.Policy Research/Review,Supplies And Services,4430,Consultants Fees,Phase 2 - Peterborough & Cambs Devolution Programme - May&June 2016,
East Cambridgeshire District Council,21/07/2016,Abritas Ltd,1134926,"10,602.85",,Infrastructure and Strategy,Supplies And Services,4430,Consultants Fees,Provision of Services AFR,
East Cambridgeshire District Council,01/08/2016,Cambridge City Council,1134932,"15,350.00",,Infrastructure and Strategy,Supplies And Services,4430,Consultants Fees,Cont Sub Regional Housing Services 2016/17,
East Cambridgeshire District Council,23/08/2016,Ernst & Young LLP,1135105,"14,177.00",,Corp.Man.Policy Research/Review,Supplies And Services,4441,External Audit Fees,1st Qtr year ending 31/3/17,
East Cambridgeshire District Council,31/08/2016,Suffolk County Council,636724,663,,Legal,Supplies And Services,4443,Solicitors Fees,Proffesional Fees case numbers 45853 & 46307 Period 1/3-30/6/16,
East Cambridgeshire District Council,31/08/2016,Suffolk Legal  ,636724,503.8,,Legal,Supplies And Services,4443,Solicitors Fees,Proffesional Fees case numbers 45853 & 46307 Period 1/3-30/6/16,
East Cambridgeshire District Council,04/08/2016,Idox Software Limited,636626,"2,250.00",,Information Technology,Supplies And Services,4452,IT - Upgrade consultants,TLC Upgrade & Con29 - 50% on Completion,
East Cambridgeshire District Council,17/08/2016,Neopost Ltd,1135012,"3,000.00",,DMS,Supplies And Services,4510,Postage,Postage Recredit,
East Cambridgeshire District Council,17/08/2016,Royal Mail Group plc,1135015,"1,927.36",,Registration of Electors,Supplies And Services,4510,Postage,RSAC-AKKJ-YBCY,
East Cambridgeshire District Council,24/08/2016,Royal Mail Group plc,1135106,"1,481.92",,Registration of Electors,Supplies And Services,4510,Postage,RSAC-AKKJ-YBCY,
East Cambridgeshire District Council,08/08/2016,Royal Mail Group plc,1134977,-627.6,,Referendums,Supplies And Services,4510,Postage,Post vote licence fee & add selections - By Elec 4/2/16,
East Cambridgeshire District Council,29/07/2016,Ip-Xchange Ltd,1134928,"1,032.94",,E Space South,Supplies And Services,4520,Telephone,Provisions IPT Services July 16,
East Cambridgeshire District Council,29/07/2016,Ip-Xchange Ltd,1134929,"1,863.27",,E Space North,Supplies And Services,4520,Telephone,Provisions IPT E-Space North July 16,
East Cambridgeshire District Council,03/08/2016,Virgin Media Payments Ltd - 743058701,1134950,"2,060.17",,The Grange,Supplies And Services,4520,Telephone,743058701,
East Cambridgeshire District Council,20/08/2016,Virgin Media Payments Ltd - 743058701,1135122,"1,989.84",,The Grange,Supplies And Services,4520,Telephone,Account 743058701,
East Cambridgeshire District Council,31/08/2016,Ip-Xchange Ltd,1135138,"1,006.52",,E Space South,Supplies And Services,4520,Telephone,E Space South,
East Cambridgeshire District Council,31/08/2016,Ip-Xchange Ltd,1135139,"2,099.66",,E Space North,Supplies And Services,4520,Telephone,E Space North,
East Cambridgeshire District Council,26/07/2016,Local World Ltd - Cambridge Newspapers,636512,504,,Planning,Supplies And Services,4532,T&C Planning Act Adverts,,
East Cambridgeshire District Council,23/08/2016,Local World Ltd - Cambridge Newspapers,636683,525,,Planning,Supplies And Services,4532,T&C Planning Act Adverts,Cambridge news 18/8/16,
East Cambridgeshire District Council,19/08/2016,Phoenix Software Ltd,636662,535.07,,Information Technology,Supplies And Services,4550,IT Licences,Windows Server Std 2012 Release 2 Single Licence,
East Cambridgeshire District Council,11/08/2016,Coolspirit Ltd,636689,681.36,,Information Technology,Supplies And Services,4550,IT Licences,Arcserve Cloud Capacity,
East Cambridgeshire District Council,20/06/2016,Northgate Public Services (UK) Ltd,1134615,"1,024.20",,Information Technology,Supplies And Services,4550,IT Licences,Paris Web Services Intergration Licence 23/7/16-22/7/17,
East Cambridgeshire District Council,01/07/2016,Data Interchange Plc,1134713,"1,314.00",,Information Technology,Supplies And Services,4550,IT Licences,ODEX Eterprises & Devils 1/9/16-31/8/17,
East Cambridgeshire District Council,03/08/2016,Northgate Public Services (UK) Ltd,1134953,"1,000.00",,Information Technology,Supplies And Services,4550,IT Licences,Support & Maintenance Paris 23/7/16-22/7/17,
East Cambridgeshire District Council,29/07/2016,Andy Grant Ltd,1134978,500,,Information Technology,Supplies And Services,4550,IT Licences,Monthly hosting support 1/8/16-31/8/16,
East Cambridgeshire District Council,03/08/2016,Northgate Public Services (UK) Ltd,1134952,"-1,024.20",,Information Technology,Supplies And Services,4550,IT Licences,Credit against inv 91372819,
East Cambridgeshire District Council,15/09/2016,Trading Co,5105456,-61.64,,Information Technology,Supplies And Services,4550,IT Licences,SSL Cert.,Y
East Cambridgeshire District Council,15/09/2016,Microsoft,5105456,173.26,,LATC,Supplies And Services,4550,IT Licences,,Y
East Cambridgeshire District Council,08/08/2016,CCS Media Ltd,636552,757.12,,Information Technology,Supplies And Services,4551,Hardware Purchases/Maint,Dell professional P2014H,
East Cambridgeshire District Council,15/09/2016,Amazon ,5105456,7.69,,Information Technology,Supplies And Services,4551,Hardware Purchases/Maint, 16GB USB Memory Stick,Y
East Cambridgeshire District Council,05/08/2016,ClearView Communications Limited,636547,750,,Community Safety,Supplies And Services,4713,Grants - Contributions,"21"" monitor Ely CCTV",
East Cambridgeshire District Council,15/08/2016,Centre 33,636606,"3,250.00",,Community Safety,Supplies And Services,4713,Grants - Contributions,Community Safety Grant Funding for Healthy Relationships,
East Cambridgeshire District Council,29/07/2016,Ely Outdoor Sports Association,636500,"3,000.00",,Sports Co-ord (Leisure Centre & Sports Facs SLA/Investment),Supplies And Services,4730,Grants - Sports Dec,Sports Grants,
East Cambridgeshire District Council,22/08/2016,Cheffins Client Account,636693,600,,Homelessness Prevention,Supplies And Services,4910,Other Payments,Redacted Personal Data,
East Cambridgeshire District Council,26/08/2016,XL Circondare Ltd,636711,889,,Corp.Man.Policy Research/Review,Supplies And Services,4910,Other Payments,End of Year Report,
East Cambridgeshire District Council,26/08/2016,XL Circondare Ltd,636713,"1,714.00",,Corp.Man.Policy Research/Review,Supplies And Services,4910,Other Payments,End of Year Report,
East Cambridgeshire District Council,09/08/2016,Unison (10455),1134982,613.85,,Payroll,Supplies And Services,4910,Other Payments,Membership July 2016,
East Cambridgeshire District Council,18/08/2016,Trevor Benton Construction Ltd,1135025,"2,565.66",,Home Improvement Agency Services,Supplies And Services,4938,Client Contribution,Redacted Personal Data,
East Cambridgeshire District Council,08/08/2016,East of England Local Government Association,636577,"2,550.00",,Public Relations,Third Party Payments,5010,Contracted Services,"Strategic Comm Support,Redacted Personal Data - July 2016",
East Cambridgeshire District Council,31/08/2016,Forest Heath District Council,636721,"4,175.00",,Internal Audit,Third Party Payments,5010,Contracted Services,Audit recharges 1/4/16-31/8/16,
East Cambridgeshire District Council,15/08/2016,Veolia ES (UK) Ltd,1135013,"1,296.35",,Bulk Waste,Third Party Payments,5010,Contracted Services,Collections 1/7/16-31/7/16,
East Cambridgeshire District Council,15/08/2016,Veolia ES (UK) Ltd,1135013,"30,603.34",,Recycling,Third Party Payments,5010,Contracted Services,Collections 1/7/16-31/7/16,
East Cambridgeshire District Council,15/08/2016,Veolia ES (UK) Ltd,1135013,"30,603.34",,Recycling Organic Waste,Third Party Payments,5010,Contracted Services,Collections 1/7/16-31/7/16,
East Cambridgeshire District Council,15/08/2016,Veolia ES (UK) Ltd,1135013,"72,255.09",,Refuse Collection,Third Party Payments,5010,Contracted Services,Collections 1/7/16-31/7/16,
East Cambridgeshire District Council,15/08/2016,Veolia ES (UK) Ltd,1135013,"40,775.20",,Weekly Collection Support Grant,Third Party Payments,5010,Contracted Services,Collections 1/7/16-31/7/16,
East Cambridgeshire District Council,15/08/2016,Veolia ES (UK) Ltd,1135013,"44,943.26",,Street Cleansing,Third Party Payments,5010,Contracted Services,Collections 1/7/16-31/7/16,
East Cambridgeshire District Council,15/08/2016,Veolia ES (UK) Ltd,1135019,"2,149.52",,Bulk Waste,Third Party Payments,5010,Contracted Services,Cleaning Contract 1/6/16-30/6/16 less Default Deductions,
East Cambridgeshire District Council,15/08/2016,Veolia ES (UK) Ltd,1135019,"28,284.59",,Recycling,Third Party Payments,5010,Contracted Services,Cleaning Contract 1/6/16-30/6/16 less Default Deductions,
East Cambridgeshire District Council,15/08/2016,Veolia ES (UK) Ltd,1135019,"28,284.59",,Recycling Organic Waste,Third Party Payments,5010,Contracted Services,Cleaning Contract 1/6/16-30/6/16 less Default Deductions,
East Cambridgeshire District Council,15/08/2016,Veolia ES (UK) Ltd,1135019,"67,750.55",,Refuse Collection,Third Party Payments,5010,Contracted Services,Cleaning Contract 1/6/16-30/6/16 less Default Deductions,
East Cambridgeshire District Council,15/08/2016,Veolia ES (UK) Ltd,1135019,"40,742.31",,Weekly Collection Support Grant,Third Party Payments,5010,Contracted Services,Cleaning Contract 1/6/16-30/6/16 less Default Deductions,
East Cambridgeshire District Council,15/08/2016,Veolia ES (UK) Ltd,1135019,"44,943.26",,Street Cleansing,Third Party Payments,5010,Contracted Services,Cleaning Contract 1/6/16-30/6/16 less Default Deductions,
East Cambridgeshire District Council,18/08/2016,East Cambs Trading Co Ltd,1135102,"16,405.00",,Sanctuary Grasscutting,Third Party Payments,5010,Contracted Services,Grounds maintenance Aug 2016,
East Cambridgeshire District Council,01/08/2016,Breckland Council,1134940,"38,358.90",,Council Tax Collection Costs,Third Party Payments,5020,ARP Services,provision of services 2016/17,
East Cambridgeshire District Council,01/08/2016,Breckland Council,1134940,"47,059.53",,Housing Benefits,Third Party Payments,5020,ARP Services,provision of services 2016/17,
East Cambridgeshire District Council,01/08/2016,Breckland Council,1134940,"9,716.74",,NNDR Collection costs,Third Party Payments,5020,ARP Services,provision of services 2016/17,
East Cambridgeshire District Council,01/08/2016,Breckland Council,1134940,"-1,016.11",,Anglia Revenue Partnerships (ARP),Third Party Payments,5020,ARP Services,provision of services 2016/17,
East Cambridgeshire District Council,23/08/2016,Mace Limited,636667,"26,799.00",,Leisure Facility,Capital Costs,C301,Professional Fees,RIBA 4 July 2016,
East Cambridgeshire District Council,23/08/2016,Mace Limited,636668,"35,109.00",,Leisure Facility,Capital Costs,C301,Professional Fees,RIBA 4 Aug 2016,
East Cambridgeshire District Council,31/07/2016,Chaplin Farrant Limited,636695,"4,754.93",,Angel Drove Commuters Car Park,Capital Costs,C301,Professional Fees,Angel Drove Ely,
East Cambridgeshire District Council,29/07/2016,Ravencroft Tree Services Ltd,636703,990,,Angel Drove Commuters Car Park,Capital Costs,C301,Professional Fees,Tree Survey & Provide Arboricultural Impact,
East Cambridgeshire District Council,08/08/2016,Turnstone Ely Limited,636604,"59,690.23",,Leisure Facility,Capital Costs,C302,Consultants Fees,Land at Downham Road Ely,
East Cambridgeshire District Council,17/08/2016,Newmarket Town FC,636611,"5,000.00",,Community Facilities Grant,Capital Costs,C401,Capital Grants,facilities Imp Grant Ref 010,
East Cambridgeshire District Council,18/08/2016,Man Construction Ltd,1135022,"5,992.27",,Mandatory Disabled Fac.Grant,Capital Costs,C404,Home Imp.Grant. Final payment,Redacted Personal Data,
East Cambridgeshire District Council,18/08/2016,Trevor Benton Construction Ltd,1135026,"9,721.99",,Mandatory Disabled Fac.Grant,Capital Costs,C404,Home Imp.Grant. Final payment,Redacted Personal Data,
East Cambridgeshire District Council,24/08/2016,Paul Barrow Builders  Ltd,1135109,"3,537.00",,Home Repair Assistance,Capital Advances,C501,Capital Advances,Redacted Personal Data,
East Cambridgeshire District Council,23/08/2016,Littleport Parish Council,636675,"1,137.14",,Section 106 Agreements,Section 106,P360,Section 106 Rev Payments,Grant Ref 48 Health Living Project Littleport Defibrilators,
East Cambridgeshire District Council,09/08/2016,Swaffham Prior Parish Council,1134981,"38,951.91",,Section 106 Agreements,Section 106,P360,Section 106 Rev Payments,S106 POS Contribution Transfer 14/00303,
East Cambridgeshire District Council,09/08/2016,Ancestors of Dover Ltd,636560,859.65,,Cromwell House,Merchandising Stock,P730,Purchase - Souvenirs & Gifts,,
,,,,"786,674.33",,,,,,,
